fUST/lending_fUST_20240509
["ID","MTS","AMOUNT","RATE_DAILY","PERIOD"]
[326698711,1715258941598,-2898.05,0.00042191,34]
[326698712,1715258941643,-500.0,0.00042191,34]
[326698713,1715258941691,-500.0,0.00042191,34]
[326698714,1715258941740,-500.0,0.00042191,34]
[326698715,1715258941786,-500.0,0.00042191,34]
[326698716,1715258941836,-500.0,0.00042191,34]
[326698717,1715258941888,-961.27,0.00042191,34]
[326698718,1715258942019,-220.67428586,0.00042191,34]
[326698719,1715258942071,-150.44486842,0.00042191,34]
[326698720,1715258942127,-500.0,0.00042191,34]
[326698721,1715258942178,-506.02,0.00042191,34]
[326698722,1715258942229,-500.0,0.00042191,34]
[326698723,1715258942278,-554.93,0.00042191,34]
[326698724,1715258942327,-500.0,0.00042191,34]
[326698725,1715258942376,-500.0,0.00042191,34]
[326698726,1715258942424,-946.1,0.00042191,34]
[326698727,1715258942480,-1103.16,0.00042191,34]
[326698728,1715258942531,-500.0,0.00042191,34]
[326698729,1715258942587,-1036.04,0.00042191,34]
[326698730,1715258942639,-500.0,0.00042191,34]
[326698731,1715258942688,-2898.05,0.00042465,35]
[326698732,1715258942743,-500.0,0.00042465,35]
[326698733,1715258942797,-500.0,0.00042465,35]
[326698734,1715258942850,-500.0,0.00042465,35]
[326698735,1715258942901,-500.0,0.00042465,35]
[326698736,1715258942954,-499.26944823,0.00042465,35]
[326698737,1715258943012,-961.27,0.00042465,35]
[326698738,1715258943067,-500.0,0.00042465,35]
[326698739,1715258943124,-211.17409099,0.00042465,7]
[326698740,1715258943175,-506.02,0.00042465,35]
[326698741,1715258943227,-500.0,0.00042465,35]
[326698742,1715258943282,-554.93,0.00042465,35]
[326698743,1715258943337,-500.0,0.00042465,35]
[326698744,1715258943389,-500.0,0.00042465,35]
[326698745,1715258943441,-946.1,0.00042465,35]
[326698746,1715258943498,-1103.16,0.00042465,35]
[326698747,1715258943550,-500.0,0.00042465,35]
[326698748,1715258943600,-1036.04,0.00042465,35]
[326698749,1715258943649,-500.0,0.00042465,35]
[326698750,1715258943698,-1697.9100707,0.000425,30]
[326698751,1715258943753,-2898.05,0.00042739,36]
[326698752,1715258943815,-352.1378563,0.00042739,36]
[326698753,1715258943876,-387.00890973,0.00042739,36]
[326698754,1715258943934,-500.0,0.00042739,36]
[326698755,1715258943993,-483.64972437,0.00042739,36]
[326698756,1715258944049,-961.27,0.00042739,36]
[326698757,1715258944102,-500.0,0.00042739,36]
[326698758,1715258944153,-506.02,0.00042739,36]
[326698759,1715258944209,-500.0,0.00042739,36]
[326698760,1715258944261,-554.93,0.00042739,36]
[326698761,1715258944311,-500.0,0.00042739,36]
[326698762,1715258944359,-500.0,0.00042739,36]
[326698763,1715258944411,-946.1,0.00042739,36]
[326698764,1715258944467,-1103.16,0.00042739,36]
[326698765,1715258944517,-491.5430245,0.00042739,36]
[326698766,1715258944566,-1036.04,0.00042739,36]
[326698767,1715258944617,-500.0,0.00042739,36]
[326698768,1715258944668,-2898.05,0.00043013,37]
[326698769,1715258944718,-500.0,0.00043013,37]
[326698770,1715258944765,-961.27,0.00043013,37]
[326698771,1715258944818,-500.0,0.00043013,37]
[326698772,1715258944874,-506.02,0.00043013,37]
[326698773,1715258944926,-500.0,0.00043013,37]
[326698774,1715258944979,-500.0,0.00043013,37]
[326698775,1715258945029,-554.93,0.00043013,37]
[326698776,1715258945081,-500.0,0.00043013,37]
[326698777,1715258945134,-946.1,0.00043013,37]
[326698778,1715258945187,-1103.16,0.00043013,37]
[326698779,1715258945244,-1036.04,0.00043013,37]
[326698780,1715258945294,-587.21253413,0.00043013,37]
[326698781,1715258945343,-2898.05,0.00043287,38]
[326698782,1715258945393,-500.0,0.00043287,38]
[326698783,1715258945441,-961.27,0.00043287,38]
[326698784,1715258945492,-500.0,0.00043287,38]
[326698785,1715258945543,-506.02,0.00043287,38]
[326698786,1715258945591,-500.0,0.00043287,38]
[326698787,1715258945643,-500.0,0.00043287,38]
[326698788,1715258945693,-554.93,0.00043287,38]
[326698789,1715258945745,-500.0,0.00043287,38]
[326698790,1715258945796,-946.1,0.00043287,38]
[326698791,1715258945847,-1103.16,0.00043287,38]
[326698792,1715258945896,-1036.04,0.00043287,38]
[326698793,1715258945945,-2898.05,0.00043561,39]
[326698794,1715258945996,-500.0,0.00043561,39]
[326698795,1715258946045,-961.27,0.00043561,39]
[326698796,1715258946097,-500.0,0.00043561,39]
[326698797,1715258946147,-506.02,0.00043561,39]
[326698798,1715258946281,-500.0,0.00043561,39]
[326698799,1715258946329,-500.0,0.00043561,39]
[326698800,1715258946375,-554.93,0.00043561,39]
[326698801,1715258946421,-500.0,0.00043561,39]
[326698802,1715258946471,-946.1,0.00043561,39]
[326698803,1715258946521,-1103.16,0.00043561,39]
[326698804,1715258946569,-1036.04,0.00043561,39]
[326698805,1715258946620,-2898.05,0.00043835,40]
[326698806,1715258946672,-500.0,0.00043835,40]
[326698807,1715258946719,-961.27,0.00043835,40]
[326698808,1715258946768,-500.0,0.00043835,40]
[326698809,1715258946818,-506.02,0.00043835,40]
[326698810,1715258946866,-375.97809588,0.00043835,40]
[326698811,1715258946913,-554.93,0.00043835,40]
[326698812,1715258946964,-500.0,0.00043835,40]
[326698813,1715258947012,-500.0,0.00043835,40]
[326698814,1715258947062,-946.1,0.00043835,40]
[326698815,1715258947114,-1103.16,0.00043835,40]
[326698816,1715258947164,-1036.04,0.00043835,40]
[326698817,1715258947214,-156.08742444,0.00044,15]
[326698818,1715258947262,-154.69061976,0.00044,120]
[326698819,1715258947311,-2898.05,0.00044109,41]
[326698820,1715258947364,-500.0,0.00044109,41]
[326698821,1715258947412,-961.27,0.00044109,41]
[326698822,1715258947464,-500.0,0.00044109,41]
[326698823,1715258947515,-506.02,0.00044109,41]
[326698824,1715258947564,-554.93,0.00044109,41]
[326698825,1715258947615,-500.0,0.00044109,41]
[326698826,1715258947663,-500.0,0.00044109,41]
[326698827,1715258947715,-946.1,0.00044109,41]
[326698828,1715258947769,-1103.16,0.00044109,41]
[326698829,1715258947820,-1036.04,0.00044109,41]
[326698830,1715258947871,-923.0,0.00044109,30]
[326698831,1715258947920,-2898.05,0.00044383,42]
[326698832,1715258947970,-500.0,0.00044383,42]
[326698833,1715258948019,-961.27,0.00044383,42]
[326698834,1715258948070,-500.0,0.00044383,42]
[326698835,1715258948119,-506.02,0.00044383,42]
[326698836,1715258948167,-554.93,0.00044383,42]
[326698837,1715258948216,-510.73490288,0.00044383,42]
[326698838,1715258948264,-500.0,0.00044383,42]
[326698839,1715258948313,-946.1,0.00044383,42]
[326698840,1715258948363,-1103.16,0.00044383,42]
[326698841,1715258948413,-1036.04,0.00044383,42]
[326698842,1715258948461,-494.317,0.00044495,2]
[326698843,1715258948507,-150.863,0.00044495,2]
[326698844,1715258948556,-2898.05,0.00044657,43]
[326698845,1715258948605,-500.0,0.00044657,43]
[326698846,1715258948656,-961.27,0.00044657,43]
[326698847,1715258948711,-500.0,0.00044657,43]
[326698848,1715258948761,-506.02,0.00044657,43]
[326698849,1715258948814,-554.93,0.00044657,43]
[326698850,1715258948863,-500.0,0.00044657,43]
[326698851,1715258948911,-946.1,0.00044657,43]
[326698852,1715258948960,-1103.16,0.00044657,43]
[326698853,1715258949006,-1036.04,0.00044657,43]
[326698854,1715258949055,-2898.05,0.00044931,44]
[326698855,1715258949106,-500.0,0.00044931,44]
[326698856,1715258949155,-961.27,0.00044931,44]
[326698857,1715258949211,-500.0,0.00044931,44]
[326698858,1715258949267,-506.02,0.00044931,44]
[326698859,1715258949322,-554.93,0.00044931,44]
[326698860,1715258949372,-486.9721476,0.00044931,44]
[326698861,1715258949424,-946.1,0.00044931,44]
[326698862,1715258949476,-1103.16,0.00044931,44]
[326698863,1715258949526,-1036.04,0.00044931,44]
[326698864,1715258949574,-151.0,0.00045,120]
[326698865,1715258949626,-2898.05,0.00045205,45]
[326698866,1715258949681,-500.0,0.00045205,45]
[326698867,1715258949734,-961.27,0.00045205,45]
[326698868,1715258949787,-500.0,0.00045205,45]
[326698869,1715258949835,-506.02,0.00045205,45]
[326698870,1715258949884,-554.93,0.00045205,45]
[326698871,1715258949932,-946.1,0.00045205,45]
[326698872,1715258949982,-1103.16,0.00045205,45]
[326698873,1715258950033,-1036.04,0.00045205,45]
[326698874,1715258950082,-2898.05,0.00045479,46]
[326698875,1715258950132,-500.0,0.00045479,46]
[326698876,1715258950180,-961.27,0.00045479,46]
[326698877,1715258950232,-456.98681512,0.00045479,46]
[326698878,1715258950372,-506.02,0.00045479,46]
[326698879,1715258950422,-554.93,0.00045479,46]
[326698880,1715258950471,-946.1,0.00045479,46]
[326698881,1715258950521,-1103.16,0.00045479,46]
[326698882,1715258950572,-1036.04,0.00045479,46]
[326698883,1715258950628,-6752.31084357,0.00045753,3]
[326698884,1715258950678,-2898.05,0.00045753,47]
[326698885,1715258950728,-500.0,0.00045753,47]
[326698886,1715258950776,-961.27,0.00045753,47]
[326698887,1715258950824,-506.02,0.00045753,47]
[326698888,1715258950872,-554.93,0.00045753,47]
[326698889,1715258950921,-946.1,0.00045753,47]
[326698890,1715258950972,-1103.16,0.00045753,47]
[326698891,1715258951022,-1036.04,0.00045753,47]
[326698892,1715258951071,-151.0,0.00045753,120]
[326698893,1715258951118,-154.70605849,0.000459,4]
[326698894,1715258951166,-2898.05,0.00046027,48]
[326698895,1715258951217,-500.0,0.00046027,48]
[326698896,1715258951271,-961.27,0.00046027,48]
[326698897,1715258951319,-506.02,0.00046027,48]
[326698898,1715258951366,-554.93,0.00046027,48]
[326698899,1715258951414,-946.1,0.00046027,48]
[326698900,1715258951464,-1103.16,0.00046027,48]
[326698901,1715258951511,-1036.04,0.00046027,48]
[326698902,1715258951557,-2898.05,0.00046301,49]
[326698903,1715258951602,-500.0,0.00046301,49]
[326698904,1715258951650,-961.27,0.00046301,49]
[326698905,1715258951697,-506.02,0.00046301,49]
[326698906,1715258951746,-554.93,0.00046301,49]
[326698907,1715258951793,-946.1,0.00046301,49]
[326698908,1715258951842,-1103.16,0.00046301,49]
[326698909,1715258951890,-1036.04,0.00046301,49]
[326698910,1715258951936,-151.0,0.00046493,120]
[326698911,1715258951984,-2898.05,0.00046575,50]
[326698912,1715258952035,-500.0,0.00046575,50]
[326698913,1715258952084,-961.27,0.00046575,50]
[326698914,1715258952132,-506.02,0.00046575,50]
[326698915,1715258952181,-554.93,0.00046575,50]
[326698916,1715258952232,-946.1,0.00046575,50]
[326698917,1715258952281,-1103.16,0.00046575,50]
[326698918,1715258952330,-1036.04,0.00046575,50]
[326698919,1715258952381,-2898.05,0.00046849,51]
[326698920,1715258952428,-500.0,0.00046849,51]
[326698921,1715258952472,-961.27,0.00046849,51]
[326698922,1715258952518,-506.02,0.00046849,51]
[326698923,1715258952563,-554.93,0.00046849,51]
[326698924,1715258952609,-946.1,0.00046849,51]
[326698925,1715258952660,-1103.16,0.00046849,51]
[326698926,1715258952708,-1036.04,0.00046849,51]
[326698927,1715258952759,-2898.05,0.00047123,52]
[326698928,1715258952806,-500.0,0.00047123,52]
[326698929,1715258952854,-961.27,0.00047123,52]
[326698930,1715258952903,-506.02,0.00047123,52]
[326698931,1715258952955,-554.93,0.00047123,52]
[326698932,1715258953022,-946.1,0.00047123,52]
[326698933,1715258953075,-1103.16,0.00047123,52]
[326698934,1715258953131,-1036.04,0.00047123,52]
[326698935,1715258953181,-151.0,0.00047233,120]
[326698936,1715258953229,-2898.20281171,0.00047397,53]
[326698937,1715258953277,-228.81929715,0.00047397,53]
[326698938,1715258953326,-961.35998352,0.00047397,53]
[326698939,1715258953374,-506.05012332,0.00047397,53]
[326698940,1715258953422,-555.13675426,0.00047397,53]
[326698941,1715258953473,-946.25974158,0.00047397,53]
[326698942,1715258953528,-1103.18644403,0.00047397,53]
[326698943,1715258953578,-1036.14361927,0.00047397,53]
[326698944,1715258953630,-385.580623,0.00047758,2]
[326698945,1715258953684,-151.0,0.00047973,120]
[326698946,1715258953733,-173.77134864,0.0004834,10]
[326698947,1715258953783,-151.0,0.00048712,120]
[326698948,1715258953831,-166.666666,0.00048986,2]
[326698949,1715258953880,-3842.62151679,0.00049,120]
[326698950,1715258953928,-151.0,0.00049452,120]
[326698951,1715258953977,-8585.04600272,0.0005,120]
[326698952,1715258954027,-154.70605849,0.0005,30]
[326698953,1715258954074,-569.62485281,0.0005,7]
[326698954,1715258954122,-962.90174446,0.0005,60]
[326698955,1715258954178,-151.0,0.0005,120]
[326698956,1715258954226,-311.9713014,0.0005,2]
[326698957,1715258954274,-151.0,0.00050192,120]
[326698958,1715258954326,-151.0,0.00050932,120]
[326698959,1715258954385,-151.0,0.00051671,120]
[326698960,1715258954436,-151.0,0.00052411,120]
[326698961,1715258954486,-1851.25643689,0.0005248,120]
[326698962,1715258954541,-307.4781096,0.00052503,2]
[326698963,1715258954590,-153.0,0.00052511,2]
[326698964,1715258954640,-306.0,0.00052511,2]
[326698965,1715258954691,-327.603554,0.00052511,2]
[326698966,1715258954751,-151.0,0.00053151,120]
[326698967,1715258954802,-151.0,0.0005389,120]
[326698968,1715258954853,-385.580623,0.00054131,2]
[326698969,1715258954904,-151.0,0.0005463,120]
[326698970,1715258954953,-151.0,0.0005537,120]
[326698971,1715258955005,-151.0,0.0005611,120]
[326698972,1715258955055,-221.0,0.000566,120]
[326698973,1715258955107,-151.0,0.00056849,120]
[326698974,1715258955162,-151.0,0.00057589,120]
[326698975,1715258955215,-151.0,0.00058329,120]
[326698976,1715258955268,-151.0,0.00059068,120]
[326698977,1715258955320,-151.0,0.00059808,120]
[326698978,1715258955369,-160.0,0.0006,60]
[326698979,1715258955420,-385.580623,0.00060505,2]
[326698980,1715258955472,-151.0,0.00060548,120]
[326698981,1715258955522,-151.0,0.00061288,120]
[326698982,1715258955572,-668.0,0.00062,120]
[326698983,1715258955623,-151.0,0.00062027,120]
[326698984,1715258955675,-151.0,0.00062767,120]
[326698985,1715258955723,-151.0,0.00063507,120]
[326698986,1715258955911,-151.0,0.00064247,120]
[326698987,1715258955960,-151.0,0.00064986,120]
[326698988,1715258956019,-151.0,0.00065726,120]
[326698989,1715258956068,-500.0,0.00065753,120]
[326698990,1715258956117,-151.0,0.00066466,120]
[326698991,1715258956168,-385.580623,0.00066878,2]
[326698992,1715258956222,-151.0,0.00067205,120]
[326698993,1715258956268,-151.0,0.00067945,120]
[326698994,1715258956315,-250.0,0.00068493,120]
[326698995,1715258956362,-500.0,0.00068493,120]
[326698996,1715258956409,-750.0,0.00068493,120]
[326698997,1715258956458,-1000.0,0.00068493,120]
[326698998,1715258956507,-790.91035955,0.00068493,120]
[326698999,1715258956552,-151.0,0.00068685,120]
[326699000,1715258956597,-151.0,0.00068877,120]
[326699001,1715258956643,-154.70605849,0.00069,7]
[326699002,1715258956688,-151.0,0.00069425,120]
[326699003,1715258956733,-151.0,0.00070164,120]
[326699004,1715258956780,-151.0,0.00070904,120]
[326699005,1715258956826,-166.666666,0.00070986,120]
[326699006,1715258956873,-151.0,0.00071644,120]
[326699007,1715258956920,-151.0,0.00072384,120]
[326699008,1715258956967,-151.0,0.00073123,120]
[326699009,1715258957016,-385.580623,0.00073252,120]
[326699010,1715258957063,-151.0,0.00073863,120]
[326699011,1715258957110,-151.0,0.00074603,120]
[326699012,1715258957156,-151.0,0.00075342,120]
[326699013,1715258957202,-151.0,0.00076082,120]
[326699014,1715258957250,-151.0,0.00076822,120]
[326699015,1715258957296,-151.0,0.00077562,120]
[326699016,1715258957343,-151.0,0.00078301,120]
[326699017,1715258957388,-151.0,0.00079041,120]
[326699018,1715258957433,-166.666666,0.00079315,120]
[326699019,1715258957480,-385.580623,0.00079625,120]
[326699020,1715258957526,-151.0,0.00079781,120]
[326699021,1715258957572,-300.0,0.0008,105]
[326699022,1715258957619,-151.0,0.00080521,120]
[326699023,1715258957670,-151.0,0.0008126,120]
[326699024,1715258957717,-300.0,0.000815,106]
[326699025,1715258957766,-151.0,0.00082,120]
[326699026,1715258957815,-151.0,0.0008274,120]
[326699027,1715258957862,-300.0,0.00083,107]
[326699028,1715258957909,-151.0,0.00083479,120]
[326699029,1715258957956,-151.0,0.00084219,120]
[326699030,1715258958003,-300.0,0.000845,108]
[326699031,1715258958050,-151.0,0.00084959,120]
[326699032,1715258958095,-151.0,0.00085699,120]
[326699033,1715258958143,-385.580623,0.00085999,120]
[326699034,1715258958191,-300.0,0.00086,109]
[326699035,1715258958241,-151.0,0.00086438,120]
[326699036,1715258958286,-151.0,0.00087178,120]
[326699037,1715258958332,-500.0,0.000875,110]
[326699038,1715258958376,-151.0,0.00087753,120]
[326699039,1715258958421,-151.0,0.00087918,120]
[326699040,1715258958470,-151.0,0.00088658,120]
[326699041,1715258958514,-2750.0,0.00089397,120]
[326699042,1715258958561,-385.580623,0.00092372,120]
[326699043,1715258958608,-166.666666,0.00092986,120]
[326699044,1715258958655,-180415.1898,0.000944,120]
[326699045,1715258958704,-163.0595282,0.000959,2]
[326699046,1715258958756,-1327.09698504,0.00096,120]
[326699047,1715258958806,-385.580623,0.00098746,120]
[326699048,1715258958853,-151.0,0.001,120]
[326699049,1715258958901,-385.580623,0.00105119,120]
[326699050,1715258958947,-151.0,0.0010663,120]
[326699051,1715258958996,-385.580623,0.00111493,120]
[326699052,1715258959043,-166.666666,0.00114986,120]
[326699053,1715258959093,-385.580623,0.00117866,120]
[326699054,1715258959141,-385.580623,0.0012424,120]
[326699055,1715258959186,-151.0,0.00125507,120]
[326699056,1715258959235,-385.580623,0.00130613,120]
[326699057,1715258959279,-166.666666,0.00136986,120]
[326699058,1715258959325,-166.666666,0.00136986,120]
[326699059,1715258959372,-385.580623,0.00136987,120]
[326699060,1715258959418,-151.0,0.00144384,120]
[326699061,1715258959464,-1000.0,0.00150684,7]
[326699062,1715258959513,-1000.0,0.00150684,7]
[326699063,1715258959560,-1000.0,0.00150684,7]
[326699064,1715258959685,-1000.0,0.00150684,7]
[326699065,1715258959733,-1000.0,0.00150684,7]
[326699066,1715258959781,-1000.0,0.00150684,7]
[326699067,1715258959830,-1000.0,0.00150684,7]
[326699068,1715258959877,-1000.0,0.00150684,7]
[326699069,1715258959923,-1000.0,0.00150684,7]
[326699070,1715258959971,-1000.0,0.00150684,7]
[326699071,1715258960020,-1000.0,0.00150684,7]
[326699072,1715258960067,-1000.0,0.00150684,7]
[326699073,1715258960112,-1000.0,0.00150684,7]
[326699074,1715258960158,-1000.0,0.00150684,7]
[326699075,1715258960205,-1000.0,0.00150684,7]
[326699076,1715258960258,-1000.0,0.00150684,7]
[326699077,1715258960307,-962.99745834,0.00150684,7]
[326699078,1715258960357,-200.0,0.00160179,120]
[326699079,1715258960406,-151.0,0.0016326,120]
[326699080,1715258960453,-998.64186032,0.0018,120]
[326699081,1715258960503,-151.0,0.00182137,120]
[326699082,1715258960551,-200.0,0.002,120]
[326699083,1715258960598,-151.0,0.00201014,120]
[326699084,1715258960647,-536.75239409,0.00202739,120]
[326699085,1715258960696,-151.0,0.0021989,120]
[326699086,1715258960747,-1332.0,0.0022,120]
[326699087,1715258960798,-200.0,0.00236226,120]
[326699088,1715258960847,-151.0,0.00238767,120]
[326699089,1715258960896,-1037.5215441,0.002499,120]
[326699090,1715258960945,-588293.88524358,0.0025,120]
[326699091,1715258960993,-151.0,0.00257644,120]
[326699092,1715258961042,-500.3,0.00265,120]
[326699093,1715258961102,-151.0,0.00273973,120]
[326699094,1715258961151,-151.0,0.00273973,120]
[326699095,1715258961201,-236.436629,0.00273973,120]
[326699096,1715258961254,-151.0,0.00276521,120]
[326699097,1715258961303,-151.0,0.00295397,120]
[326699098,1715258961351,-3111.2832048,0.003,80]
[326699099,1715258961400,-151.0,0.00314274,120]
[326699100,1715258961450,-200.0,0.00321265,120]
[326699101,1715258961499,-666.0,0.0033,120]
[326699102,1715258961548,-151.0,0.00333151,120]
[326699103,1715258961595,-481.41,0.003377,120]
[326699104,1715258961644,-151.0,0.00352027,120]
[326699105,1715258961691,-500.0,0.0035315,120]
[326699106,1715258961745,-151.0,0.00370904,120]
[326699107,1715258961791,-151.0,0.00389781,120]
[326699108,1715258961839,-200.0,0.0039188,120]
[326699109,1715258961886,-200.0,0.004,120]
[326699110,1715258961934,-480.0,0.00407945,120]
[326699111,1715258961983,-151.0,0.00408658,120]
[326699112,1715258962031,-2182.70407988,0.0042,120]
[326699113,1715258962079,-151.0,0.00427534,120]
[326699114,1715258962127,-153.0,0.00438356,120]
[326699115,1715258962176,-153.0,0.00438356,120]
[326699116,1715258962224,-153.0,0.00438356,120]
[326699117,1715258962273,-153.0,0.00438356,120]
[326699118,1715258962340,-153.0,0.00438356,120]
[326699119,1715258962388,-153.0,0.00438356,120]
[326699120,1715258962435,-153.0,0.00438356,120]
[326699121,1715258962482,-153.0,0.00438356,120]
[326699122,1715258962529,-153.0,0.00438356,120]
[326699123,1715258962577,-153.0,0.00438356,120]
[326699124,1715258962624,-153.0,0.00438356,120]
[326699125,1715258962674,-153.0,0.00438356,120]
[326699126,1715258962722,-153.0,0.00438356,120]
[326699127,1715258962769,-153.0,0.00438356,120]
[326699128,1715258962817,-153.0,0.00438356,120]
[326699129,1715258962866,-153.0,0.00438356,120]
[326699130,1715258962915,-153.0,0.00438356,120]
[326699131,1715258962963,-153.0,0.00438356,120]
[326699132,1715258963011,-153.0,0.00438356,120]
[326699133,1715258963059,-153.0,0.00438356,120]
[326699134,1715258963105,-153.0,0.00438356,120]
[326699135,1715258963152,-153.0,0.00438356,120]
[326699136,1715258963198,-151.0,0.00446411,120]
[326699137,1715258963249,-11218.1264962,0.00446575,120]
[326699138,1715258963295,-11496.13860452,0.0045,120]
[326699139,1715258963345,-557.0,0.0045125,120]
[326699140,1715258963390,-1000.0,0.00462681,120]
[326699141,1715258963435,-151.0,0.00465288,120]
[326699142,1715258963480,-7000.0,0.0047,120]
[326699143,1715258963526,-440.0,0.00470605,120]
[326699144,1715258963573,-2081.841201,0.00475,120]
[326699145,1715258963726,-557.0,0.00475,120]
[326699146,1715258963775,-151.0,0.00484164,120]
[326699147,1715258963822,-1000.0,0.00499584,120]
[326699148,1715258963872,-1000.0,0.00499644,120]
[326699149,1715258963923,-487.27089649,0.00499773,120]
[326699150,1715258963972,-1000.0,0.00499879,120]
[326699151,1715258964022,-449012.20899451,0.005,120]
[326699152,1715258964226,1002.93632745,0.00020913,2]
[326699154,1715259032199,-159.42165086,0.00022,2]
[326699156,1715259032208,-714.82665538,0.00023,2]
[326699159,1715259032218,-320.68043693,0.00025,2]
[326699162,1715259032227,-400.02877114,0.00025,2]
[326699165,1715259032240,-166.666666,0.00026986,2]
[326699169,1715259032250,-186.81844012,0.00027,2]
[326699172,1715259032260,-424.50332659,0.00028,2]
[326699175,1715259032270,-166.394239,0.00028,2]
[326699177,1715259032280,-1082.92036522,0.0003,10]
[326699178,1715259032292,-13526.27975228,0.0003,10]
[326699226,1715259043113,-2585.67396586,0.0003,10]
[326699229,1715259043123,-154.69061876,0.0003,4]
[326699231,1715259043133,-639.42689636,0.00032,4]
[326699234,1715259043143,-466.94535979,0.00034,4]
[326699238,1715259043153,-2975.36381128,0.00035,4]
[326699239,1715259043162,-854.9131085,0.00035,2]
[326699241,1715259043172,-214.86476744,0.00035,4]
[326699242,1715259043182,-322.07196136,0.00035,30]
[326699244,1715259043192,-24900.0,0.00035224,2]
[326699245,1715259043202,-709.39024198,0.0003579,2]
[326699246,1715259043212,-154.70605849,0.0003589,2]
[326699247,1715259043221,-2829.42645,0.00037,2]
[326699248,1715259043232,-5349.232241,0.0004,4]
[326699249,1715259043243,-500.0,0.00041095,3]
[326699250,1715259043253,-500.0,0.00041095,30]
[326699251,1715259043262,-500.0,0.00041095,30]
[326699252,1715259043272,-500.0,0.00041095,7]
[326699253,1715259043283,-855.87,0.00041095,30]
[326699254,1715259043294,-502.77011074,0.00041095,30]
[326699255,1715259043303,-678.11,0.00041095,30]
[326699256,1715259043313,-500.0,0.00041095,30]
[326699257,1715259043323,-500.0,0.00041095,30]
[326699258,1715259043332,-507.18787034,0.00041095,30]
[326699259,1715259043342,-500.0,0.00041095,30]
[326699260,1715259043350,-500.0,0.00041095,30]
[326699261,1715259043358,-500.0,0.00041095,30]
[326699262,1715259043368,-500.0,0.00041095,30]
[326699263,1715259043377,-500.0,0.00041095,30]
[326699264,1715259043387,-500.0,0.00041095,30]
[326699265,1715259043396,-505.03423802,0.00041095,30]
[326699266,1715259043406,-501.72759396,0.00041095,30]
[326699267,1715259043416,-511.14873724,0.00041095,30]
[326699268,1715259043425,-500.0,0.00041095,30]
[326699269,1715259043435,-500.0,0.00041095,30]
[326699270,1715259043444,-500.0,0.00041095,30]
[326699271,1715259043454,-500.0,0.00041095,30]
[326699272,1715259043463,-500.0,0.00041369,3]
[326699273,1715259043473,-500.0,0.00041369,31]
[326699274,1715259043482,-500.0,0.00041369,31]
[326699275,1715259043492,-500.0,0.00041369,7]
[326699276,1715259043501,-855.87,0.00041369,31]
[326699277,1715259043511,-678.11,0.00041369,31]
[326699278,1715259043520,-500.0,0.00041369,31]
[326699279,1715259043530,-500.0,0.00041369,31]
[326699280,1715259043540,-500.0,0.00041369,31]
[326699281,1715259043550,-500.0,0.00041369,31]
[326699282,1715259043559,-510.79220814,0.00041369,31]
[326699283,1715259043568,-500.0,0.00041369,31]